[Event "E Grand Swiss 2023"]
[Site "Chess.com"]
[Date "2023.10.29"]
[Round "5"]
[White "Erigaisi, Arjun"]
[Black "Jumabayev, Rinat"]
[Result "1-0"]
[WhiteElo "2712"]
[BlackElo "2585"]
[ECO "C65"]
[EventDate "2023.??.??"]
[Annotator "rafael"]
[PlyCount "135"]
[Beauty "5982621008436"]
[EventType "team-tourn"]
[EventCountry "FID"]
[TimeControl "40/5400+30:1800+30"]

1.e4 e5 2.Nf3 Nc6 3.Bb5 Nf6 4.d3 Bc5 5.c3 d5 6.exd5 Qxd5 7.Bc4 Qd6 8.b4 Bb6 9.Nbd2 ( 9.a4 {is played more often.} ) 9...Bg4 {A new move. Jumabayev had used a lot of time already, so I doubt it was prepared beforehand.} ( 9...Bf5 10.Ng5 O-O 11.Nde4 Nxe4 12.dxe4 Qxd1+ 13.Kxd1 Bg4+ {with a balanced game, the theory goes much deeper.} ) ( 9...O-O ) 10.a4 {Judging by the continuation of the game, it's possible to say that castling immediately is more accurate.} ( 10.O-O ) 10...e4 $1 {[%c_effect e4;square;e4;type;GreatFind;persistent;true] A very strong pawn sacrifice.} 11.dxe4 ( 11.Qe2 $2 {[%c_effect e2;square;e2;type;Mistake;persistent;true] leads to catastrophe:} 11...O-O-O $1 {[%c_effect c8;square;c8;type;GreatFind;persistent;true]} 12.dxe4 Nh5 $1 {[%c_effect h5;square;h5;type;GreatFind;persistent;true] The knight gets ready to go to f4. Black's huge development advantage is going to tell.} ) ( 11.Nxe4 Nxe4 12.dxe4 Qf6 $1 {[%c_effect f6;square;f6;type;GreatFind;persistent;true] with excellent compensation for the pawn.} ) 11...a5 $1 {[%c_effect a5;square;a5;type;GreatFind;persistent;true] It's necessary to give some air for the bishop.} ( 11...Ne5 $6 {[%c_effect e5;square;e5;type;Inaccuracy;persistent;true]} 12.Be2 {is better for White.} ) 12.bxa5 ( 12.b5 $2 {[%c_effect b5;square;b5;type;Mistake;persistent;true]} 12...Ne5 {This is a much more favorable version for Black, since he doesn't have to worry about the bishop on b6.} ) 12...Nxa5 13.Bb5+ c6 14.Be2 O-O-O 15.O-O {For the sacrificed pawn, Black has an advantage in development and attacking chances. But his next move allows White to simplify the position.} 15...Rhe8 $6 {[%c_effect e8;square;e8;type;Inaccuracy;persistent;true]} ( 15...Bxf3 $1 {[%c_effect f3;square;f3;type;GreatFind;persistent;true] is the best way to play.} 16.Bxf3 ( 16.Nxf3 $2 {[%c_effect f3;square;f3;type;Mistake;persistent;true]} 16...Qxd1 17.Bxd1 Nxe4 ) 16...Bc7 17.g3 h5 $1 {[%c_effect h5;square;h5;type;GreatFind;persistent;true] with good attacking chances on the kingside.} ) 16.e5 Qe6 17.exf6 Qxe2 18.Qxe2 Rxe2 19.fxg7 {Changing the queens must have been a great relief for Erigaisi.} 19...Rg8 20.Nd4 Ree8 ( 20...Bxd4 $1 {[%c_effect d4;square;d4;type;GreatFind;persistent;true] is better:} 21.cxd4 Rxg7 22.Ra3 Be6 {Black is very active and should hold the endgame.} ) 21.Ba3 Rxg7 22.Rfe1 {Now White has a serious advantage. The compensation for the pawn is not adequate anymore.} 22...Rd8 $6 {[%c_effect d8;square;d8;type;Inaccuracy;persistent;true]} ( 22...Rgg8 {gives better chances.} ) 23.Rab1 Bc7 24.Re7 ( 24.Bb4 {is strong, putting pressure on Black's knight that is out of play.} ) 24...Bh3 25.g3 b6 {Jumabayev tries to play c6-c5, but he has no time.} 26.Bb4 $1 {[%c_effect b4;square;b4;type;GreatFind;persistent;true]} 26...Nb7 27.Nc4 Rg6 {Defending the c6-pawn but leaving f7 to its fate.} 28.Rxf7 c5 29.Nb5 Rd7 30.Rxd7 Bxd7 31.Ba3 {White is two pawns up, and we could think that the game is decided, but we will still have an almost inexhaustible amount of adventures.} 31...Be6 32.Ne3 $6 {[%c_effect e3;square;e3;type;Inaccuracy;persistent;true]} ( 32.Na7+ $1 {[%c_effect a7;square;a7;type;GreatFind;persistent;true] closes the game immediately, since another pawn falls.} 32...Kd8 33.Nxb6 ) 32...Bf4 33.Bc1 Na5 34.Ng2 ( 34.Nd5 $1 {[%c_effect d5;square;d5;type;GreatFind;persistent;true] uses a tactical idea to simplify:} 34...Bxd5 ( 34...Bxc1 35.Ne7+ {wins material.} ) 35.Bxf4 {with a winning endgame.} ) 34...Bb8 35.Bf4 Bb3 36.Bxb8 Kxb8 37.f4 $1 {[%c_effect f4;square;f4;type;GreatFind;persistent;true] Passed pawns must be pushed. This saying never gets old.} 37...Bxa4 38.f5 Rg8 39.Ne3 Rd8 40.Na3 ( 40.f6 {White can keep pushing the pawn, but the move played in the game is also good.} ) 40...Bb3 41.Kf2 ( 41.c4 $1 {[%c_effect c4;square;c4;type;GreatFind;persistent;true] is indicated by the computer as a more precise way.} 41...Kc7 42.Re1 {followed by the advance of the kingside.} ) 41...Kc7 42.Kf3 Kc6 43.g4 ( 43.c4 {again is good.} ) 43...Rd2 ( 43...b5 {deserves consideration.} ) 44.f6 Kd7 {The king must come to the defense.} ( 44...Rxh2 $2 {[%c_effect h2;square;h2;type;Mistake;persistent;true]} 45.Rxb3 Nxb3 46.f7 {The pawn promotes.} ) 45.Re1 Rxh2 46.c4 $2 {[%c_effect c4;square;c4;type;Mistake;persistent;true] This move throws away the win, but Black's task is far from easy.} ( 46.Nf5 Ra2 47.Nb5 {White has an easy win with the active knights, the rook ready to go for the seventh rank, and the passed pawn about to queen.} ) 46...Ra2 $1 {[%c_effect a2;square;a2;type;GreatFind;persistent;true] The only defense.} 47.Nb5 ( 47.f7 Ke7 $1 {[%c_effect e7;square;e7;type;GreatFind;persistent;true]} ) 47...Nxc4 48.Nxc4 Bxc4 49.Re7+ Kc6 50.Na7+ Kd6 51.Nc8+ Kc6 52.Rxh7 {Both sides have passed pawns, but the white ones are more advanced.} 52...Ra8 ( 52...Ra1 $1 {[%c_effect a1;square;a1;type;GreatFind;persistent;true] is the best way to make a draw.} 53.g5 Rg1 54.Rg7 Rf1+ {It's not easy for White to advance the pawns. The computer indicates equality.} ) 53.Ne7+ Kd6 54.Kf4 b5 $2 {[%c_effect b5;square;b5;type;Mistake;persistent;true] This move loses.} ( 54...Ke6 $1 {[%c_effect e6;square;e6;type;GreatFind;persistent;true] is necessary.} 55.Kg5 ( 55.g5 Ra1 $1 {[%c_effect a1;square;a1;type;GreatFind;persistent;true] with a draw.} ) 55...b5 $1 {[%c_effect b5;square;b5;type;GreatFind;persistent;true] Black is able to save the endgame.} ) 55.Nf5+ Kc6 56.g5 b4 57.g6 b3 {This is one of the most extraordinary endgames I've ever seen. A fight of attack and counterattack, pawns against pawns, similar to a study with incredible moves popping up at all times. The reader will do well to analyze this position carefully without rushing, as the delight with the moves played and those that remained hidden is the true reason to love chess. Like a John le Carré spy thriller, the twists and turns take place until the last moment, when the plot is finally unraveled with a surprising outcome.} 58.f7 $2 {[%c_effect f7;square;f7;type;Mistake;persistent;true] This is the first mistake, but the players were dealing with a superhuman task.} ( 58.Rh2 $1 {[%c_effect h2;square;h2;type;GreatFind;persistent;true] The pawn must be stopped on b3.} 58...Rb8 59.Rb2 $1 {[%c_effect b2;square;b2;type;GreatFind;persistent;true]} 59...Kd7 60.Kg5 {The white king joins the party, supporting the pawns.} ) 58...b2 59.Rh1 Ba2 $2 {[%c_effect a2;square;a2;type;Mistake;persistent;true]} ( 59...Bxf7 $1 {[%c_effect f7;square;f7;type;GreatFind;persistent;true] This leads to a pretty draw:} 60.gxf7 Rf8 61.Nh6 c4 62.Ke3 Rd8 $1 {[%c_effect d8;square;d8;type;GreatFind;persistent;true] This fine detail was probably missed by Jumabayev. The king is cut, and White will lose the f-pawn, leading the game to a theoretically drawn endgame.} ) 60.Ke5 $1 {[%c_effect e5;square;e5;type;GreatFind;persistent;true]} 60...Kb5 ( 60...b1=Q 61.Rxb1 Bxb1 62.g7 {and White queens.} ) 61.Nd6+ $2 {[%c_effect d6;square;d6;type;Mistake;persistent;true]} ( 61.Rf1 $3 {[%c_effect f1;square;f1;type;Brilliant;persistent;true] This extraordinary move, which is even hard to explain, is the only way to win.} 61...Kb4 62.Ne7 {White wins in all lines, for example:} 62...Bxf7 63.gxf7 c4 64.Nd5+ $1 {[%c_effect d5;square;d5;type;GreatFind;persistent;true]} 64...Kb3 65.Rf3+ $1 {[%c_effect f3;square;f3;type;GreatFind;persistent;true]} 65...Kc2 66.Nc3 b1=Q 67.Nxb1 Kxb1 68.Kd4 ) ( 61.Kf6 Kb4 ) 61...Kb4 62.Ne8 {It seems like the f-pawn is going to promote, which is true, but the game isn't over.} 62...Bxf7 63.gxf7 Ra1 $3 {[%c_effect a1;square;a1;type;Brilliant;persistent;true] A remarkable resource $1} 64.Rh4+ {The best chance.} ( 64.f8=Q Rxh1 65.Qf4+ c4 {Surprisingly, White has no more than a draw.} ) 64...Ka5 $1 {[%c_effect a5;square;a5;type;GreatFind;persistent;true] The only square. One has to admire Jumabayev's play in this endgame.} ( 64...Kb3 65.f8=Q b1=Q 66.Qf3+ {with a decisive attack with the heavy pieces.} ) 65.f8=Q b1=Q $2 {[%c_effect b1;square;b1;type;Mistake;persistent;true] A slip at the last moment.} ( 65...Re1+ $3 {[%c_effect e1;square;e1;type;Brilliant;persistent;true] is the way to force a draw.} 66.Kd5 b1=Q {The exchange of positions between Black's queen and rook is essential, as the rook now controls more important squares. If the c5-pawn is captured, then Black forces the exchange of queens.} ) 66.Nd6 $1 {[%c_effect d6;square;d6;type;GreatFind;persistent;true] A study-like move that clinches the game. Black's checks will soon be over, and White will be ready for the decisive onslaught.} 66...Qb2+ ( 66...Qe1+ 67.Re4 Qc3+ 68.Kd5 Qd3+ 69.Kc6 Qa6+ 70.Kd7 Qa7+ 71.Ke6 {No more checks.} ) 67.Ke6 Qe2+ 68.Kd7 {Black resigned before Erigaisi began the sequence of deadly checks. The Indian GM's games seem like magnets for adventure. They always guarantee lots of fun.} 1-0

[Event "E Grand Swiss 2023"]
[Site "Isle of Man"]
[Date "2023.10.25"]
[Round "1"]
[White "Duda, Jan Krzysztof"]
[Black "Idani, Pouya"]
[Result "1-0"]
[WhiteElo "2726"]
[BlackElo "2633"]
[ECO "D37"]
[EventDate "2023.??.??"]
[Annotator "rafael"]
[PlyCount "63"]
[Beauty "8246739896391"]
[EventType "game"]
[EventCountry "FID"]
[TimeControl "40/5400+30:1800+30"]

{[%evp 0,63,19,-1,14,14,14,9,31,24,24,22,33,33,33,23,18,23,23,14,26,16,51,51,53,53,53,53,64,67,73,67,69,49,41,27,120,92,131,104,155,123,161,207,207,207,207,207,207,207,218,164,207,171,492,492,492,492,508,514,541,541,541,541,549,560]} 
1.c4 e6 2.Nc3 d5 3.d4 h6 {A curious move that has become popular recently. The idea is to avoid the development of the white bishop to g5.} 4.Nf3 Nf6 5.Bf4 ( 5.g3 Bd6 6.a3 O-O 7.g4 {This almost random sequence was played in an online game between Gukesh and Carlsen. Of course, knowing how to make mysterious moves with pawns is a secret to playing chess well nowadays. Gukesh-Carlsen, Chess.com (blitz) 2022.} ) 5...Bd6 6.Bxd6 Qxd6 7.c5 {Duda played this move quickly, so I assume it's home preparation. It's usually difficult to decide on this pawn advance because we instinctively want to maintain greater control of the center with the pawn on c4. Additionally, White needs to keep an eye on Black's breaks with e6-e5 and b7-b6. I emphasize again the importance of the pawn play, which will be the central positional theme in this game.} ( 7.e3 {is the main move.} ) 7...Qe7 8.e3 O-O 9.b4 {An important moment. Black must choose a plan of action.} 9...c6 ( 9...a6 $5 {[%c_effect a6;square;a6;type;Interesting;persistent;true] is a deep and interesting move. The idea is to develop the knight to c6.} 10.a4 ( 10.Be2 Nc6 $1 {[%c_effect c6;square;c6;type;GreatFind;persistent;true] This is Black's point: the knight now cannot be attacked by b4-b5.} 11.Qb3 {Here Black has several interesting continuations. 11...Rd8, preparing e6-e5; 11...e5, sacrificing the d5-pawn, or 11...b6, opening the queenside, when the queen on b3 might be the subject of an attack after ...Rb8.} ) 10...b6 11.a5 $1 {[%c_effect a5;square;a5;type;GreatFind;persistent;true] Preventing a6-a5.} 11...Nc6 12.axb6 cxb6 13.b5 Na5 14.Rxa5 $1 {[%c_effect a5;square;a5;type;GreatFind;persistent;true]} 14...bxa5 15.b6 Nd7 16.Be2 Nxc5 $1 {[%c_effect c5;square;c5;type;GreatFind;persistent;true]} 17.dxc5 Qxc5 18.Qd4 Qxd4 19.exd4 Rb8 {This was Lokander-Van Foreest, Germany 2022. Both sides played with accuracy and imagination. Black later went on to win the endgame, although the computer evaluates the position as equal.} ) ( 9...b6 {is a natural choice, followed by a7-a5. This can also be played on the next move.} ) 10.Be2 a6 $5 {[%c_effect a6;square;a6;type;Interesting;persistent;true] Black simply wants to put the knight on d5 and then play e5-e4 and attack the kingside.} ( 10...b6 {is a standard, although passive, plan.} 11.O-O a5 12.a3 Ba6 {White has a small advantage in a position typical of the Queen's Gambit Declined.} ) ( 10...Nbd7 11.b5 $1 {[%c_effect b5;square;b5;type;GreatFind;persistent;true] This gives White extra chances since the queen can use the a4-square.} ) 11.O-O Nbd7 12.a4 e5 13.Qc2 ( 13.b5 {is a little rushed.} 13...exd4 14.exd4 Ne4 $1 {[%c_effect e4;square;e4;type;GreatFind;persistent;true] with counterplay, in Narayanan-Ghosh, Dhaka 2022.} ) 13...e4 14.Nd2 Nh7 15.b5 f5 {This natural move turns out to be a novelty.} ( 15...Qh4 $2 {[%c_effect h4;square;h4;type;Mistake;persistent;true] It's not clear what the queen is doing here.} 16.bxc6 bxc6 17.f3 {with a clear advantage for White in Beydullayeva-Basso, Novi Sad 2022.} ) 16.Nb3 {The knight is ready to go to a5. The position is complex and it's not clear that this is the best plan.} ( 16.bxc6 bxc6 17.a5 {is possible, when White can play Na4-b6, or Qa4, attacking the c6-pawn. The question is who is going to be faster, White on the queenside or Black on the kingside.} ) 16...a5 {Idani, for now, takes the a5-square from the knight.} ( 16...Qd8 {is possible, but it's difficult to retreat the queen like this.} ) ( 16...Ndf6 $1 {[%c_effect f6;square;f6;type;GreatFind;persistent;true] is the best move. Black has adequate counterplay. The knight on a5 is not as dangerous as it looks.} ) 17.Qd2 $1 {[%c_effect d2;square;d2;type;GreatFind;persistent;true] Duda's intentions become clear on the next move.} 17...g5 $2 {[%c_effect g5;square;g5;type;Mistake;persistent;true] This is too optimistic. Black needed a more subtle move.} ( 17...Ndf6 {is best. Now the knight sacrifice is no good.} 18.f4 {White needs to gains some space on the kingside.} ( 18.Na2 $2 {[%c_effect a2;square;a2;type;Mistake;persistent;true] The primitive attack against the a5-pawn is too slow.} 18...Ng4 $1 {[%c_effect g4;square;g4;type;GreatFind;persistent;true] The attack is already decisive, for instance:} 19.h3 Ng5 $1 {[%c_effect g5;square;g5;type;GreatFind;persistent;true]} 20.hxg4 fxg4 {Followed by a sacrifice on f3.} ) 18...exf3 19.Bxf3 Ng5 $13 ) 18.Nxa5 $1 {[%c_effect a5;square;a5;type;GreatFind;persistent;true] Duda thought for more or less 15 minutes before executing this excellent move.} 18...Rxa5 19.Nxd5 cxd5 ( 19...Qd8 {doesn't help:} 20.Ne7+ $1 {[%c_effect e7;square;e7;type;GreatFind;persistent;true]} 20...Qxe7 21.Bc4+ Kh8 22.Qxa5 Ndf6 23.Qb6 {with a position similar to the game.} ) 20.Qxa5 Ndf6 21.Qb6 {There are alternatives, but Duda's plan is good and straightforward. He prepares to advance the a-pawn and the queen can help in defense, if needed, with Qb6-d6.} 21...f4 22.a5 ( 22.Qd6 {is also good.} ) 22...f3 23.gxf3 Bh3 {Idani desperately tries to create attacking chances, but the a-pawn is too fast.} 24.a6 $1 {[%c_effect a6;square;a6;type;GreatFind;persistent;true]} 24...exf3 25.Bxf3 bxa6 26.bxa6 {The natural human reaction. The pawn is two steps from paradise.} ( 26.Rxa6 {is a computer suggestion.} 26...Bxf1 27.Kxf1 g4 28.Ra7 Qe8 29.Qb7 $1 {[%c_effect b7;square;b7;type;GreatFind;persistent;true]} 29...Qg6 30.Bxd5+ Kh8 {With the engine on we can see that White is winning, but during the game I'd still be afraid of the queen and two knights looking at my king.} ) 26...g4 ( 26...Bxf1 27.a7 $1 {[%c_effect a7;square;a7;type;GreatFind;persistent;true]} 27...Bh3 28.a8=Q Rxa8 29.Rxa8+ Nf8 30.c6 {The c-pawn is decisive.} ) ( 26...Qd7 {is the best practical chance.} 27.Qd6 {This is probably the simplest, but there are other good moves.} ( 27.a7 $2 {[%c_effect a7;square;a7;type;Mistake;persistent;true] But not this one, since after} 27...Qf5 {Black has serious threats.} ) 27...Qf5 ( 27...Qxd6 28.cxd6 Bxf1 29.Kxf1 Ra8 30.a7 {with a winning endgame.} ) 28.Be2 {White is able to defend the king.} ) 27.Qb7 $1 {[%c_effect b7;square;b7;type;GreatFind;persistent;true]} 27...Qe6 ( 27...Qxb7 28.axb7 gxf3 29.Ra8 {The b-pawn promotes.} ) 28.Bh1 $1 {[%c_effect h1;square;h1;type;GreatFind;persistent;true]} 28...Ng5 ( 28...Bxf1 29.a7 {wins.} ) 29.a7 Nf3+ 30.Bxf3 gxf3 31.Qb8 $1 {[%c_effect b8;square;b8;type;GreatFind;persistent;true] The only winning move.} ( 31.Qc7 $2 {[%c_effect c7;square;c7;type;Mistake;persistent;true] is no good:} 31...Ne4 $1 {[%c_effect e4;square;e4;type;GreatFind;persistent;true]} ) 31...Bxf1 32.a8=Q 1-0